fUST/lending_fUST_20251106
["ID","MTS","AMOUNT","RATE_DAILY","PERIOD"]
[393273003,1762414242977,-16.08071712,0.00023779,2]
[393273065,1762414243569,-18279.629893,0.00023779,2]
[393273333,1762414246182,-3147.67934089,0.00023779,2]
[393273352,1762414246359,-2514.15165,0.00023779,2]
[393273531,1762414524880,185.0,0.00032877,120]
[393273595,1762414787963,21965.0,0.00032876,120]
[393273608,1762415085118,257.209,0.00032876,120]
[393273609,1762415157293,3000.0,0.00032877,120]
[393273672,1762415431932,-860.0,0.0002277,2]
[393273674,1762415431941,-371.0,0.0002277,2]
[393273677,1762415431951,-150.0,0.00022775,2]
[393273679,1762415431967,-4000.0,0.00022779,2]
[393273681,1762415431980,-4400.9778739,0.00022793,2]
[393273682,1762415431991,-175.51854952,0.00022854,2]
[393273684,1762415432001,-1200.0,0.00022855,2]
[393273686,1762415432010,-4156.0,0.00022856,2]
[393273688,1762415432023,-626.55652976,0.000229,2]
[393273690,1762415432032,-27361.02996102,0.0002299,2]
[393273692,1762415432041,-500.56187868,0.00023,2]
[393273694,1762415432051,-1158.59970841,0.00023365,2]
[393273696,1762415432061,-500.0,0.000236,2]
[393273698,1762415432070,-500.0,0.000236,2]
[393273700,1762415432079,-1137.12136636,0.00023661,2]
[393273702,1762415432089,-806.87,0.00023669,10]
[393273704,1762415432098,-587.38,0.00023669,10]
[393273706,1762415432109,-500.0,0.00023673,2]
[393273708,1762415432118,-476.13457074,0.00023673,2]
[393273710,1762415432127,-500.0,0.00023673,2]
[393273712,1762415432136,-500.0,0.00023673,2]
[393273714,1762415432146,-500.0,0.00023673,2]
[393273717,1762415432155,-500.0,0.00023673,2]
[393273720,1762415432164,-524.71031638,0.00023673,2]
[393273723,1762415432174,-503.05867081,0.00023673,2]
[393273724,1762415432182,-500.0,0.00023673,2]
[393273725,1762415432191,-500.0,0.00023673,2]
[393273726,1762415432200,-500.0,0.00023673,2]
[393273727,1762415432209,-501.1527927,0.00023673,2]
[393273728,1762415432217,-500.0,0.00023673,2]
[393273729,1762415432226,-500.0,0.00023673,2]
[393273730,1762415432235,-150.0,0.00023673,2]
[393273731,1762415432244,-585.09824827,0.00023673,2]
[393273732,1762415432253,-495031.96251485,0.00023679,2]
[393273733,1762415432264,-16766.73806074,0.00023679,2]
[393273734,1762415432276,-718.96485048,0.00023679,2]
[393273735,1762415432287,-372.62296633,0.00023679,2]
[393274293,1762415443210,-459.25251512,0.00023679,2]
[393274295,1762415443221,-24711.64574809,0.00023679,2]
[393274480,1762415446274,-18315.45594327,0.00023679,2]
[393274481,1762415446285,-1437.1938843,0.00023679,2]
[393274503,1762415719593,314.59375,0.00013699,2]
[393274507,1762415947589,170.42366,0.00030137,120]
[393274509,1762416128833,5000.0,0.00032876,120]
[393274536,1762416483491,189.59,0.00015135,2]
[393274538,1762416553138,-283.0,0.00019986,2]
[393274539,1762416553158,-150.0,0.00020087,2]
[393274540,1762416553188,-290.72399008,0.00020187,2]
[393274562,1762416632114,-210.56,0.00019986,2]
[393274563,1762416632123,-283.0,0.00019986,2]
[393274564,1762416632133,-150.0,0.00020087,2]
[393274565,1762416632142,-23.86975992,0.00020187,2]
[393274566,1762416632151,-261.265384,0.00021498,2]
[393274567,1762416632160,-177.0,0.00022087,2]
[393274568,1762416632169,-184.306203,0.00022361,2]
[393274569,1762416632179,-231.20549755,0.00022673,2]
[393274575,1762416637963,-268.79450245,0.00022673,2]
[393274576,1762416637973,-649.07736176,0.00022673,2]
[393274577,1762416637983,-500.0,0.00022673,2]
[393274578,1762416637992,-501.9305062,0.00022673,2]
[393274579,1762416638000,-500.0,0.00022673,2]
[393274580,1762416638010,-500.0,0.00022673,2]
[393274581,1762416638019,-500.0,0.00022673,2]
[393274582,1762416638028,-500.0,0.00022673,2]
[393274583,1762416638037,-500.0,0.00022673,2]
[393274584,1762416638047,-505.20770374,0.00022673,2]
[393274585,1762416638056,-500.0,0.00022673,2]
[393274586,1762416638065,-502.24532673,0.00022673,2]
[393274587,1762416638074,-500.0,0.00022673,2]
[393274588,1762416638083,-500.0,0.0002268,2]
[393274589,1762416638092,-500.0,0.0002268,2]
[393274591,1762416638101,-500.0,0.0002268,2]
[393274592,1762416638110,-500.0,0.0002268,2]
[393274594,1762416638119,-500.0,0.0002268,2]
[393274595,1762416638129,-500.0,0.0002268,2]
[393274597,1762416638139,-500.0,0.0002268,2]
[393274599,1762416638148,-500.0,0.0002268,2]
[393274601,1762416638157,-500.0,0.0002268,2]
[393274603,1762416638166,-500.0,0.0002268,2]
[393274605,1762416638175,-353.38210964,0.0002268,2]
[393275002,1762416643255,-146.61789036,0.0002268,2]
[393275003,1762416643266,-500.0,0.0002268,2]
[393275004,1762416643275,-500.0,0.0002268,2]
[393275005,1762416643285,-500.0,0.0002268,2]
[393275006,1762416643294,-500.0,0.0002268,2]
[393275007,1762416643304,-493.03031644,0.0002268,2]
[393275013,1762416646478,-6.96968356,0.0002268,2]
[393275014,1762416646487,-500.0,0.0002268,2]
[393275015,1762416646496,-500.0,0.0002268,2]
[393275016,1762416646506,-500.0,0.0002268,2]
[393275017,1762416646515,-500.0,0.0002268,2]
[393275018,1762416646524,-500.0,0.0002268,2]
[393275019,1762416646533,-208.06053799,0.0002268,2]
[393275020,1762416646542,-500.0,0.0002268,2]
[393275021,1762416646551,-500.0,0.0002268,2]
[393275022,1762416646560,-500.0,0.0002268,2]
[393275023,1762416646569,-28207.4007063,0.00022687,2]
[393275024,1762416646578,-548.23696354,0.0002271,2]
[393275025,1762416646587,-1000.0,0.00023221,2]
[393275026,1762416646596,-1000.0,0.00023221,2]
[393275027,1762416646605,-1000.0,0.00023221,2]
[393275028,1762416646615,-1000.0,0.00023221,2]
[393275029,1762416646623,-465.08568432,0.00023221,2]
[393275030,1762416646632,-500.0,0.00023221,2]
[393275031,1762416646641,-500.0,0.00023221,2]
[393275032,1762416646650,-504.76898142,0.00023221,2]
[393275033,1762416646659,-758.0809109,0.000235,2]
[393275034,1762416646668,-470.26798814,0.00023573,2]
[393275035,1762416646677,-500.0,0.00023573,2]
[393275036,1762416646686,-500.0,0.00023573,2]
[393275037,1762416646696,-500.0,0.00023573,2]
[393275038,1762416646708,-500.0,0.00023573,2]
[393275039,1762416646717,-501.70107434,0.00023573,2]
[393275040,1762416646726,-459.25251512,0.00023573,2]
[393275041,1762416646736,-500.0,0.00023573,2]
[393275042,1762416646745,-500.0,0.00023573,2]
[393275043,1762416646755,-500.0,0.00023573,2]
[393275044,1762416646763,-500.0,0.00023573,2]
[393275045,1762416646772,-500.0,0.00023573,2]
[393275046,1762416646782,-500.0,0.00023573,2]
[393275047,1762416646791,-150.0,0.00023573,2]
[393275048,1762416646800,-323693.58344264,0.00023579,2]
[393275049,1762416646812,-2699.1642852,0.00023579,2]
[393275050,1762416696212,459.07,0.00032877,120]
[393275081,1762417755109,1000.0,0.00032,120]
[393275082,1762417804433,7032.43,0.00032877,120]
[393275154,1762417838176,-364.0,0.00022572,2]
[393275156,1762417838186,-150.0,0.00022572,2]
[393275158,1762417838195,-10.87469203,0.00022572,2]
[393275349,1762417840337,-195.24912478,0.00022572,2]
[393275351,1762417840347,-300.0,0.0002267,2]
[393275353,1762417840356,-500.0,0.0002267,2]
[393275355,1762417840366,-549.5268034,0.0002267,2]
[393275357,1762417840375,-500.0,0.0002267,2]
[393275359,1762417840384,-500.0,0.0002267,2]
[393275361,1762417840393,-500.0,0.0002267,2]
[393275363,1762417840403,-500.0,0.0002267,2]
[393275365,1762417840412,-500.0,0.0002267,2]
[393275367,1762417840422,-97.98407182,0.0002267,2]
[393275369,1762417840433,-402.01592818,0.0002267,2]
[393275371,1762417840442,-49.58028776,0.0002267,2]
[393275523,1762417844115,-116.22419871,0.0002267,2]
[393275524,1762417844124,-500.0,0.0002267,2]
[393275525,1762417844134,-500.0,0.0002267,2]
[393275526,1762417844143,-500.0,0.0002267,2]
[393275527,1762417844152,-208.42434891,0.0002267,2]
[393275528,1762417844164,-151.22013178,0.0002267,2]
[393275529,1762417844172,-500.0,0.0002267,2]
[393275530,1762417844182,-500.0,0.0002267,2]
[393275531,1762417844191,-500.0,0.0002267,2]
[393275532,1762417844200,-500.0,0.0002267,2]
[393275534,1762417844209,-500.0,0.0002267,2]
[393275537,1762417844218,-500.0,0.0002267,2]
[393275540,1762417844227,-500.0,0.0002267,2]
[393275541,1762417844238,-650.39972548,0.0002267,2]
[393275542,1762417844249,-500.0,0.0002267,2]
[393275543,1762417844259,-500.0,0.0002267,2]
[393275544,1762417844268,-500.0,0.0002267,2]
[393275545,1762417844277,-500.0,0.0002267,2]
[393275546,1762417844287,-500.0,0.0002267,2]
[393275547,1762417844295,-500.0,0.0002267,2]
[393275548,1762417844304,-500.0,0.0002267,2]
[393275549,1762417844313,-500.0,0.0002267,2]
[393275550,1762417844321,-428.42421911,0.0002267,2]
[393275551,1762417844330,-167.22959491,0.0002267,2]
[393275552,1762417844339,-500.0,0.0002267,2]
[393275553,1762417844348,-500.0,0.0002267,2]
[393275554,1762417844357,-550.0,0.0002267,2]
[393275555,1762417844366,-500.0,0.0002267,2]
[393275556,1762417844375,-500.0,0.0002267,2]
[393275557,1762417844384,-500.0,0.0002267,2]
[393275558,1762417844393,-500.0,0.0002267,2]
[393275559,1762417844402,-500.0,0.0002267,2]
[393275560,1762417844411,-500.0,0.0002267,2]
[393275561,1762417844420,-500.0,0.0002267,2]
[393275562,1762417844429,-500.0,0.0002267,2]
[393275563,1762417844439,-500.0,0.0002267,2]
[393275564,1762417844448,-500.0,0.0002267,2]
[393275565,1762417844457,-500.0,0.0002267,2]
[393275566,1762417844467,-500.0,0.0002267,2]
[393275567,1762417844476,-500.0,0.0002267,2]
[393275568,1762417844485,-500.0,0.0002267,2]
[393275569,1762417844496,-500.0,0.0002267,2]
[393275570,1762417844505,-500.0,0.0002267,2]
[393275571,1762417844521,-500.0,0.0002267,2]
[393275572,1762417844539,-500.0,0.0002267,2]
[393275573,1762417844556,-500.0,0.0002267,2]
[393275574,1762417844566,-500.0,0.0002267,2]
[393275575,1762417844576,-500.0,0.00022679,2]
[393275576,1762417844587,-500.0,0.00022953,2]
[393275577,1762417844596,-672.31941399,0.00023,2]
[393275578,1762417844606,-500.0,0.00023227,2]
[393275579,1762417844615,-479.70734315,0.00023373,2]
[393275580,1762417844624,-409.15667016,0.00023381,2]
[393275581,1762417844660,-225.94246718,0.00023381,2]
[393275582,1762417844670,-501.84796782,0.00023473,2]
[393275583,1762417844680,-500.0,0.00023473,2]
[393275584,1762417844689,-500.0,0.00023473,2]
[393275585,1762417844698,-272.209565,0.00023473,2]
[393275587,1762417846643,-85.37011252,0.00023473,2]
[393275588,1762417846652,-500.0,0.00023473,2]
[393275589,1762417846662,-500.0,0.00023473,2]
[393275590,1762417846672,-500.0,0.00023473,2]
[393275591,1762417846681,-500.0,0.00023473,2]
[393275592,1762417846690,-439.27234628,0.00023473,2]
[393275593,1762417846699,-151.84005391,0.00023473,2]
[393275594,1762417846708,-343.25666442,0.00023478,2]
[393275595,1762417846717,-407.2618177,0.00023479,2]
[393275598,1762417959347,150.0,0.00016389,2]
[393275599,1762417959762,150.0,0.00017169,2]
[393275600,1762417960192,150.0,0.0001795,2]
[393275601,1762417964148,1000.0,0.00032,120]
[393275604,1762418283689,225.44,0.00015135,3]
[393275653,1762419032512,-711.25447638,0.00022173,2]
[393275656,1762419032522,-350.0,0.00022173,2]
[393275659,1762419032531,-289.41228428,0.00022173,2]
[393275662,1762419032540,-47.50983668,0.00022187,2]
[393276251,1762419043762,-102.49016332,0.00022187,2]
[393276252,1762419043773,-1200.0,0.00022254,2]
[393276253,1762419043783,-300.0,0.00022255,2]
[393276254,1762419043793,-300.0,0.00022255,2]
[393276255,1762419043802,-300.0,0.00022255,2]
[393276256,1762419043811,-300.0,0.00022255,2]
[393276258,1762419043821,-240.27966509,0.00022256,2]
[393276260,1762419043830,-500.0,0.00022256,2]
[393276262,1762419043838,-500.0,0.00022256,2]
[393276264,1762419043848,-428.84938674,0.00022256,2]
[393276266,1762419043857,-183.37774727,0.00022256,2]
[393276267,1762419043866,-407.31160961,0.00022256,2]
[393276270,1762419043876,-214.26935768,0.00022256,2]
[393276272,1762419043886,-450.0,0.00022256,2]
[393276276,1762419043895,-185.24773277,0.00022256,2]
[393276278,1762419043905,-500.0,0.00022256,2]
[393276282,1762419043915,-500.0,0.00022256,2]
[393276284,1762419043925,-500.0,0.00022256,2]
[393276285,1762419043935,-500.0,0.00022256,2]
[393276287,1762419043944,-500.0,0.00022256,2]
[393276290,1762419043954,-167.11772384,0.00022256,2]
[393276293,1762419043966,-500.0,0.00022256,2]
[393276295,1762419043976,-500.0,0.00022256,2]
[393276298,1762419043985,-252.29968727,0.00022257,2]
[393276301,1762419043996,-4165.20311104,0.00022257,2]
[393276304,1762419044007,-2360.88749245,0.00022257,2]
[393276319,1762419046979,-162944.07691574,0.00022257,2]
[393276320,1762419046989,-500.0,0.00022273,2]
[393276321,1762419046998,-500.0,0.00022273,2]
[393276322,1762419047008,-500.0,0.00022273,2]
[393276323,1762419047019,-500.0,0.00022273,2]
[393276324,1762419047028,-500.0,0.00022273,2]
[393276325,1762419047037,-500.0,0.00022273,2]
[393276326,1762419047046,-153.06,0.000223,2]
[393276327,1762419047055,-153.06,0.000224,2]
[393276328,1762419047064,-289.41228425,0.00022455,2]
[393276329,1762419047073,-153.06,0.000225,2]
[393276330,1762419047082,-153.06,0.000226,2]
[393276331,1762419047091,-399.6403651,0.00022663,2]
[393276332,1762419047100,-500.0,0.0002267,2]
[393276333,1762419047109,-153.06,0.000227,2]
[393276334,1762419047118,-289.41228425,0.00022737,2]
[393276335,1762419047127,-153.06,0.000228,2]
[393276336,1762419047136,-1000.0,0.00022821,2]
[393276337,1762419047146,-500.0,0.00022821,2]
[393276338,1762419047155,-263.90423775,0.00022821,2]
[393276339,1762419047165,-506.65177772,0.00022821,2]
[393276340,1762419047175,-500.0,0.00022912,2]
[393276341,1762419047185,-4434.2421778,0.00022913,2]
[393276342,1762419047194,-14349.2382168,0.00022913,2]
[393276343,1762419047203,-153.06,0.00023,2]
[393276344,1762419047212,-150.49698833,0.00023,2]
[393276345,1762419047221,-289.41228425,0.00023018,2]
[393276346,1762419047231,-153.06,0.000231,2]
[393276347,1762419047241,-500.0,0.000231,2]
[393276348,1762419047250,-1200.3864132,0.00023145,2]
[393276349,1762419047260,-153.06,0.000232,2]
[393276350,1762419047269,-423.39942488,0.00023281,2]
[393276351,1762419047278,-153.06,0.000233,2]
[393276352,1762419047287,-289.41228425,0.000233,2]
[393276353,1762419047297,-1520.15825939,0.00023368,2]
[393276354,1762419047306,-500.51415149,0.00023373,2]
[393276355,1762419047315,-500.0,0.00023373,2]
[393276356,1762419047324,-500.0,0.00023373,2]
[393276357,1762419047332,-500.0,0.00023373,2]
[393276358,1762419047342,-500.0,0.00023373,2]
[393276359,1762419047351,-500.0,0.00023373,2]
[393276360,1762419047360,-329.74264923,0.00023373,2]
[393276361,1762419047371,-501.15877118,0.00023373,2]
[393276362,1762419047380,-500.0,0.00023373,2]
[393276363,1762419047390,-500.0,0.00023373,2]
[393276364,1762419047399,-500.0,0.00023373,2]
[393276365,1762419047409,-500.0,0.00023373,2]
[393276366,1762419047419,-500.0,0.00023374,2]
[393276367,1762419047428,-366040.91077857,0.00023379,2]
[393276368,1762419126976,151.0,0.00032877,120]
[393276369,1762419274233,170.42366,0.00030137,120]
[393276370,1762419348402,964.72,0.00032877,120]
[393276393,1762419761226,283.134375,0.00013699,2]
[393276399,1762420084344,157.81,0.00015135,14]
[393276400,1762420145135,-271.50668418,0.00020187,2]
[393276475,1762420232573,-288.0,0.00020187,2]
[393276477,1762420232582,-11.62769082,0.00020187,2]
[393276479,1762420232591,-150.0,0.00021222,2]
[393276481,1762420232600,-395.233691,0.00022257,2]
[393276483,1762420232609,-5357.9310286,0.00022913,2]
[393276485,1762420232618,-1185.0,0.00023,2]
[393276487,1762420232628,-300.0,0.00023019,2]
[393276489,1762420232636,-1200.0,0.00023019,2]
[393276491,1762420232646,-1200.0,0.0002302,2]
[393276493,1762420232655,-300.0,0.0002302,2]
[393276495,1762420232664,-500.0,0.00023024,2]
[393276497,1762420232673,-241.81885193,0.00023024,2]
[393276499,1762420232682,-269.70908198,0.00023024,2]
[393276501,1762420232691,-163.34182765,0.00023024,2]
[393276503,1762420232700,-176.80665376,0.00023024,2]
[393276505,1762420232709,-3940.2588303,0.00023025,2]
[393276507,1762420232718,-4027.2338973,0.00023025,2]
[393276509,1762420232727,-177.0,0.00023222,2]
[393276511,1762420232736,-401.71124459,0.00023278,2]
[393276513,1762420232745,-1628.28211772,0.00023279,2]
[393276516,1762420232758,-476.52,0.00023279,2]
[393276518,1762420232769,-5174.09022989,0.00023279,2]
[393276570,1762420238505,-44042.62926815,0.00023279,2]
[393276576,1762420238559,-2200.0,0.00023279,2]
[393276793,1762420240736,-21544.54121921,0.00023279,2]
[393277094,1762420243796,-1451.34124112,0.00023279,2]
[393277101,1762420243855,-300.0,0.00023279,2]
[393277103,1762420243867,-400.22100341,0.00023279,2]
[393277105,1762420243879,-334.89703448,0.00023279,2]
[393277108,1762420243890,-711.48248578,0.00023279,2]
[393277186,1762420614707,2200.0,0.0003287,120]
[393277187,1762420844783,10116.10963445,0.00032877,120]
[393277191,1762421128677,166.71800307,0.000328,120]
[393277193,1762421228131,-373.0,0.00022813,2]
[393277194,1762421228154,-169.39,0.00022813,2]
[393277195,1762421228177,-127.24133815,0.00022861,2]
[393277365,1762421431750,-150.0,0.00023031,2]
[393277366,1762421431760,-381.0,0.00023031,2]
[393277367,1762421431769,-282.26628326,0.000231,2]
[393277368,1762421431779,-281.19787121,0.00023178,2]
[393277369,1762421431788,-300.0,0.00023178,2]
[393277370,1762421431797,-305.53584553,0.00023179,2]
[393278039,1762421446207,-277.04763692,0.00023178,2]
[393278040,1762421446218,-942.99409879,0.00023179,2]
[393278041,1762421501314,150.0,0.00017111,2]
[393278042,1762421501755,150.0,0.00017926,2]
[393278043,1762421567894,150.0,0.00016898,2]
[393278044,1762421568256,150.0,0.00017703,2]
[393278102,1762422479399,170.42366,0.00030137,120]
[393278104,1762422548097,-1591.57018286,0.0002193,2]
[393278159,1762422632089,-9.11994132,0.0002193,2]
[393278162,1762422632099,-342.0,0.0002193,2]
[393278164,1762422632109,-150.0,0.00022041,2]
[393278166,1762422632118,-538.38005868,0.00022856,2]
[393278168,1762422632130,-146.85559743,0.00022856,2]
[393278170,1762422632139,-206.20309081,0.00022979,2]
[393278172,1762422632148,-509.85619046,0.00023073,2]
[393278174,1762422632157,-500.0,0.00023073,2]
[393278176,1762422632166,-500.0,0.00023073,2]
[393278178,1762422632175,-300.0,0.00023074,2]
[393278180,1762422632184,-1200.0,0.00023074,2]
[393278182,1762422632193,-300.0,0.00023075,2]
[393278184,1762422632202,-300.0,0.00023075,2]
[393278186,1762422632212,-300.0,0.00023075,2]
[393278188,1762422632221,-300.0,0.00023075,2]
[393278190,1762422632230,-196.83850985,0.00023076,2]
[393278192,1762422632239,-500.0,0.00023076,2]
[393278194,1762422632249,-500.0,0.00023076,2]
[393278196,1762422632258,-484.75581655,0.00023076,2]
[393278198,1762422632267,-500.0,0.00023076,2]
[393278200,1762422632276,-457.30117312,0.00023076,2]
[393278202,1762422632284,-1200.0,0.00023076,2]
[393278204,1762422632293,-50000.0,0.00023077,2]
[393278206,1762422632303,-3171.08613515,0.00023079,2]
[393278208,1762422632312,-640.90388783,0.00023079,2]
[393278210,1762422632321,-169.39,0.00023095,2]
[393278212,1762422632330,-153.06,0.000231,2]
[393278214,1762422632340,-153.06,0.000231,2]
[393278216,1762422632348,-153.06,0.000231,2]
[393278218,1762422632357,-153.06,0.000231,2]
[393278220,1762422632367,-153.06,0.000231,2]
[393278222,1762422632375,-153.06,0.000231,2]
[393278224,1762422632384,-399.6403651,0.00023167,2]
[393278226,1762422632394,-163.9097088,0.00023173,2]
[393278228,1762422632403,-500.0,0.00023173,2]
[393278230,1762422632412,-500.0,0.00023173,2]
[393278232,1762422632421,-643.24708872,0.00023173,2]
[393278234,1762422632430,-411.37519729,0.00023173,2]
[393278236,1762422632439,-500.0,0.00023173,2]
[393278238,1762422632449,-500.0,0.00023173,2]
[393278240,1762422632458,-500.0,0.00023173,2]
[393278242,1762422632467,-500.0,0.00023173,2]
[393278244,1762422632476,-500.0,0.00023173,2]
[393278246,1762422632485,-315.23862598,0.00023173,2]
[393278279,1762422637801,-184.76137402,0.00023173,2]
[393278281,1762422637810,-445.27684219,0.00023173,2]
[393278283,1762422637822,-54.72315781,0.00023173,2]
[393278285,1762422637831,-500.0,0.00023173,2]
[393278287,1762422637840,-277.16758768,0.00023173,2]
[393278289,1762422637856,-222.83241232,0.00023173,2]
[393278291,1762422637865,-500.0,0.00023173,2]
[393278293,1762422637875,-226.17724131,0.00023173,2]
[393278295,1762422637885,-282.7641478,0.00023173,2]
[393278297,1762422637895,-217.2358522,0.00023173,2]
[393278530,1762422640071,-282.7641478,0.00023173,2]
[393278532,1762422640080,-500.0,0.00023173,2]
[393278535,1762422640089,-3826.24914126,0.00023179,2]
[393278538,1762422640100,-20222.65420366,0.00023179,2]
[393278546,1762422640132,-108697.80053619,0.00023179,2]
[393278550,1762422640145,-331.33674966,0.00023179,2]
[393278847,1762422643214,-1416.60701806,0.00023179,2]
[393278849,1762422643230,-2985.89233845,0.00023179,2]
[393278851,1762422643241,-1688.15574756,0.00023179,2]
[393278904,1762422646191,-50945.1018099,0.00023179,2]
[393278907,1762422750812,302.855831,0.00013699,2]
[393278911,1762423148640,-285.11521463,0.00037199,60]
[393278912,1762423148670,-500.0,0.00037199,60]
[393278913,1762423148699,-500.0,0.00037199,60]
[393278914,1762423148727,-155.87443913,0.00037199,60]
[393278915,1762423148758,-500.0,0.00037199,60]
[393278916,1762423148785,-500.0,0.00037199,60]
[393278917,1762423148813,-500.0,0.00037199,60]
[393278918,1762423148839,-500.0,0.00037199,60]
[393278919,1762423148868,-500.0,0.00037199,60]
[393278920,1762423148894,-500.0,0.00037199,60]
[393278921,1762423148921,-500.0,0.00037199,60]
[393278922,1762423148947,-500.0,0.00037199,60]
[393278923,1762423148975,-500.0,0.00037199,60]
[393278924,1762423149002,-513.55121617,0.00037199,60]
[393278925,1762423149032,-500.0,0.00037199,60]
[393278926,1762423149063,-500.0,0.00037199,60]
[393278927,1762423149091,-500.0,0.00037199,60]
[393278928,1762423149121,-500.0,0.00037199,60]
[393278929,1762423149151,-500.0,0.00037199,60]
[393278930,1762423149179,-500.0,0.00037199,60]
[393278931,1762423149207,-500.0,0.00037199,60]
[393278932,1762423149235,-465.84869693,0.00037199,60]
[393278933,1762423149262,-500.0,0.00037199,60]
[393278934,1762423149293,-500.0,0.00037199,60]
[393278935,1762423149320,-500.0,0.00037199,60]
[393278936,1762423149349,-507.62268392,0.00037199,60]
[393278937,1762423149377,-500.0,0.00037199,60]
[393278938,1762423149404,-500.0,0.00037199,60]
[393278939,1762423149430,-500.0,0.00037199,60]
[393278940,1762423149456,-500.0,0.00037199,60]
[393278941,1762423149483,-500.0,0.00037199,60]
[393278942,1762423149509,-500.0,0.00037199,60]
[393278943,1762423149535,-500.0,0.00037199,60]
[393278944,1762423149562,-500.0,0.00037199,60]
[393278945,1762423149588,-500.0,0.00037199,60]
[393278946,1762423149614,-500.0,0.00037199,60]
[393278947,1762423149643,-500.0,0.00037199,60]
[393278948,1762423149672,-505.6751239,0.00037199,60]
[393278949,1762423149698,-500.0,0.00037199,60]
[393278950,1762423149724,-613.51917259,0.00037199,60]
[393278951,1762423149753,-500.0,0.00037199,60]
[393278952,1762423149780,-500.0,0.00037199,60]
[393278953,1762423149807,-500.0,0.00037199,60]
[393278954,1762423149835,-500.0,0.00037199,60]
[393278955,1762423149865,-180.97001099,0.00037199,60]
[393278956,1762423149893,-500.0,0.00037199,60]
[393278957,1762423149922,-500.0,0.00037199,60]
[393278958,1762423149954,-500.0,0.00037199,60]
[393278959,1762423149985,-500.0,0.00037199,60]
[393278960,1762423150124,-500.0,0.00037199,60]
[393278961,1762423150156,-500.0,0.00037199,60]
[393278962,1762423150188,-500.0,0.00037199,60]
[393278963,1762423150220,-500.0,0.00037199,60]
[393278964,1762423150250,-500.0,0.00037199,60]
[393278965,1762423150277,-500.0,0.00037199,60]
[393278966,1762423150304,-500.0,0.00037199,60]
[393278967,1762423150330,-500.0,0.00037199,60]
[393278968,1762423150358,-500.0,0.00037199,60]
[393278969,1762423150384,-500.0,0.00037199,60]
[393278970,1762423150410,-500.0,0.00037199,60]
[393278971,1762423150436,-500.0,0.00037199,60]
[393278972,1762423150465,-500.0,0.00037199,60]
[393278973,1762423150491,-500.0,0.00037199,60]
[393278974,1762423150517,-500.0,0.00037199,60]
[393278975,1762423150545,-500.0,0.00037199,60]
[393278976,1762423150572,-502.31832356,0.00037199,60]
[393278977,1762423150598,-500.0,0.00037199,60]
[393278978,1762423150624,-500.0,0.00037199,60]
[393278979,1762423150650,-500.0,0.00037199,60]
[393278980,1762423150679,-500.0,0.00037199,60]
[393278981,1762423150706,-517.38863901,0.00037199,60]
[393278982,1762423150735,-500.0,0.00037199,60]
[393278983,1762423150762,-500.0,0.00037199,60]
[393278984,1762423150790,-500.0,0.00037199,120]
[393278985,1762423150816,-500.0,0.00037199,120]
[393278986,1762423150847,-500.0,0.00037199,120]
[393278987,1762423150874,-500.0,0.00037199,120]
[393278988,1762423150901,-500.0,0.00037199,60]
[393278989,1762423150929,-500.0,0.00037199,60]